[Event "2nd Father Cup Blitz 2023"]
[Site "Rasht"]
[Date "2023.12.07"]
[Round "10.1"]
[White "Maghsoodloo, Parham"]
[Black "Salimiyan, Behzad"]
[Result "1-0"]
[ECO "C42"]
[WhiteElo "2742"]
[BlackElo "2111"]
[Annotator "TA"]
[PlyCount "69"]
[EventDate "2023.12.07"]
[EventType "swiss"]
[EventCountry "IRI"]
[SourceTitle "playchess.com"]
[Source "ChessBase"]
[SourceQuality "1"]
[TimeControl "300+2"]

{[%evp 9,69,3,17,11,10,-1,-4,-3,0,1,8,8,14,14,34,19,19,17,10,0,0,-15,14,10,54,62,74,66,62,46,71,73,68,69,72,77,172,91,143,150,152,152,276,273,275,247,475,472,458,458,457,439,737,712,12825,12825,12826,12825,12828,1046,1973,1249]} 1. e4 {[%emt 0:00:01]} e5 {[%emt 0:00:01]} 2. Nf3 {[%emt 0:00:01]} Nf6 {[%emt 0:00:01]} 3. Nxe5 {[%emt 0:00:06]} d6 {[%emt 0:05:06]} 4. Nd3 {[%emt 0:00:10]} Nxe4 {[%emt 0:00:00]} 5. Qe2 {[%emt 0:00:00]} Qe7 {[%emt 0:00:00]} 6. Nf4 {[%emt 0:00:01] C42: Petroff Defence: 3 Nxe5 and unusual White 3rd moves.} c6 {[%emt 0:00:00] Repels Nd5} 7. d4 {[%emt 0:00:05]} d5 {[%emt 0:00:00]} 8. f3 {[%emt 0:00:23] The position is equal.} Nd6 {[%emt 0:00:00]} 9. c3 {[%emt 0:00:22]} Bf5 {[%emt 0:00:00]} 10. g4 {[%emt 0:00:09] [#]} Bd7 $146 {[%emt 0:00:00]} ({Predecessor:} 10... Bxb1 11. Rxb1 Nd7 12. h4 O-O-O 13. Kf2 Re8 14. Qxe7 Bxe7 15. b3 g6 16. Bd3 Bf6 {1-0 Quesada Perez,L (2555)-Guerrero Rodriguez,A (1939) Ojinaga Perla del Desierto op 2023 (2)}) 11. h4 {[%emt 0:00:03]} a5 {[%emt 0:00:00]} 12. Kf2 {[%emt 0:00:21]} Na6 {[%emt 0:00:00][%cal Bb8a6,Ba6c7,Bc7e6][%mdl 32]} 13. Qxe7+ {[%emt 0:00:05]} Bxe7 {[%emt 0:00:00]} 14. Bd3 {[%emt 0:00:01]} Nc7 {[%emt 0:00:00]} 15. Nd2 {[%emt 0:00:02][%cal Bb1d2,Bd2f1,Bf1e3,Be3g2,Bg2f4][%mdl 32]} Ne6 {[%emt 0:00:00]} 16. Nf1 {[%emt 0:00:01]} f5 {[%emt 0:00:00]} 17. g5 {[%emt 0:00:04]} g6 {[%emt 0:00:00]} 18. Nxe6 {[%emt 0:00:06]} Bxe6 {[%emt 0:00:00]} 19. Bf4 {[%emt 0:00:30]} Nf7 {[%emt 0:00:00]} 20. Re1 {[%emt 0:00:01]} Kd7 {[%emt 0:00:00]} 21. Ne3 {[%emt 0:00:07] White is more active.} a4 {[%emt 0:00:00]} 22. c4 {[%emt 0:00:01][%cal Bc3c4,Bc4c5][%mdl 32] cxd5 would be deadly.} Ra5 {[%emt 0:00:00]} (22... Bb4 $16) 23. a3 {[%emt 0:00:17]} ({White should try} 23. h5 $18) 23... Bd6 {[%emt 0:00:00] [#]} (23... Rf8 $142) 24. Bxd6 $1 $16 {[%emt 0:00:02]} Nxd6 {[%emt 0:00:00]} 25. c5 $36 {[%emt 0:00:01][%mdl 2048] White has strong initiative.} Nf7 {[%emt 0:00:00] Black is weak on the dark squares} (25... Nc4 $16) 26. Ng2 $18 {[%emt 0:00:01]} Re8 {[%emt 0:00:00]} 27. Nf4 {[%emt 0:00:03] h5 is the strong threat.} Raa8 $2 {[%emt 0:00:00] [#]} (27... Nd8 28. h5 Bf7 29. hxg6 hxg6) 28. h5 {[%emt 0:00:10] White is clearly winning.} Nxg5 {[%emt 0:00:00]} 29. hxg6 {[%emt 0:00:01]} hxg6 {[%emt 0:00:00]} 30. Reg1 {[%emt 0:00:02]} ({Not} 30. Nxg6 Rg8 $16) 30... Nf7 {[%emt 0:00:00]} (30... Ne4+ $142 31. fxe4 fxe4 32. Rxg6 Re7) 31. Rxg6 {[%emt 0:00:02]} ({Less strong is} 31. Nxg6 Rg8 32. Nf4 Raf8 $18) 31... Nd8 {[%emt 0:00:31]} 32. Nxe6 {[%emt 0:00:02]} Nxe6 {[%emt 0:00:04]} 33. Bxf5 {[%emt 0:00:01]} Re7 {[%emt 0:00:04] Against Rh7} 34. Rhh6 {[%emt 0:00:02]} (34. Rxe6 $142 Rf7 35. Rf6+ Ke7 36. Rxf7+ Kxf7 37. Rh7+ Kf6 38. Bc2) 34... Rae8 {[%emt 0:00:02]} 35. Bg4 {[%emt 0:00:04] Weighted Error Value: White=0.06 (flawless) /Black=0.33} 1-0

[Event "2nd Father Cup Blitz 2023"]
[Site "Rasht"]
[Date "2023.12.07"]
[Round "10.2"]
[White "Bashiri, Aryan"]
[Black "Daghli, Arash"]
[Result "0-1"]
[ECO "E01"]
[WhiteElo "2150"]
[BlackElo "2410"]
[Annotator "RC"]
[PlyCount "108"]
[EventDate "2023.12.07"]
[EventType "swiss"]
[EventCountry "IRI"]
[SourceTitle "playchess.com"]
[Source "ChessBase"]
[SourceQuality "1"]
[TimeControl "300+2"]

1. d4 {[%emt 0:00:02]} Nf6 {[%emt 0:00:10]} 2. Nf3 {[%emt 0:00:01]} d5 {[%emt 0:00:01]} 3. c4 {[%emt 0:00:07]} e6 {[%emt 0:00:01]} 4. g3 {[%emt 0:00:02]} h6 {[%emt 0:00:07]} 5. Bg2 {[%emt 0:00:17]} Bd6 {[%emt 0:00:02]} 6. O-O {[%emt 0:00:07]} O-O {[%emt 0:00:02]} 7. Qc2 {[%emt 0:00:44]} b6 {[%emt 0:00:21]} 8. cxd5 {[%emt 0:00:20]} exd5 {[%emt 0:00:01]} 9. Nc3 {[%emt 0:00:04]} Re8 {[%emt 0:00:23]} 10. Rd1 {[%emt 0:00:43]} c6 {[%emt 0:00:17]} 11. b3 {[%emt 0:00:09]} Nbd7 {[%emt 0:00:12]} 12. Bb2 {[%emt 0:00:10]} Ba6 {[%emt 0:00:13]} 13. Rac1 {[%emt 0:00:05]} Rc8 {[%emt 0:00:01]} 14. e3 {[%emt 0:00:02]} Ne4 {[%emt 0:00:24]} 15. Nxe4 {[%emt 0:00:05]} dxe4 {[%emt 0:00:01]} 16. Nh4 {[%emt 0:01:20]} Nf6 {[%emt 0:00:14]} 17. Bh3 {[%emt 0:00:03]} Rc7 {[%emt 0:00:12]} 18. Bf1 {[%emt 0:00:09]} Bc8 {[%emt 0:00:14]} 19. Qd2 {[%emt 0:00:10]} Nd5 {[%emt 0:00:03]} 20. a3 {[%emt 0:00:03]} a5 {[%emt 0:00:05]} 21. Rc2 {[%emt 0:00:03]} Qe7 {[%emt 0:00:04]} 22. Qc1 {[%emt 0:00:02]} Bd7 {[%emt 0:00:04]} 23. Bc4 {[%emt 0:00:01]} Bg4 {[%emt 0:00:30]} 24. Be2 {[%emt 0:00:10]} Bd7 {[%emt 0:00:20]} 25. Bc4 {[%emt 0:00:01]} Rcc8 {[%emt 0:00:17]} 26. Re1 {[%emt 0:00:15]} b5 {[%emt 0:00:01]} 27. Be2 {[%emt 0:00:03]} Qd8 {[%emt 0:00:44]} 28. Qd1 {[%emt 0:00:08]} Be6 {[%emt 0:00:06]} 29. Bg4 {[%emt 0:00:03]} Qd7 {[%emt 0:00:03]} 30. Bxe6 {[%emt 0:00:01]} Qxe6 {[%emt 0:00:01]} 31. Rd2 {[%emt 0:00:05]} Be7 {[%emt 0:00:13]} 32. Ng2 {[%emt 0:00:03]} Qf5 {[%emt 0:00:07]} 33. Rf1 {[%emt 0:00:02]} h5 {[%emt 0:00:08]} 34. f3 {[%emt 0:00:02]} Bf6 {[%emt 0:00:03]} 35. g4 {[%emt 0:00:03]} Qg6 {[%emt 0:00:06]} 36. h3 {[%emt 0:00:15]} exf3 {[%emt 0:00:03]} 37. Qxf3 {[%emt 0:00:01]} hxg4 {[%emt 0:00:00]} 38. hxg4 {[%emt 0:00:01]} Re4 {[%emt 0:00:01]} 39. Qf5 {[%emt 0:00:01]} Qxf5 {[%emt 0:00:06]} 40. gxf5 {[%emt 0:00:04]} Rce8 {[%emt 0:00:04]} 41. Rc1 {[%emt 0:00:03]} Nxe3 {[%emt 0:00:03]} 42. Rxc6 {[%emt 0:00:07]} Nxg2 {[%emt 0:00:05]} 43. Rxg2 {[%emt 0:00:02]} Re2 {[%emt 0:00:08]} 44. Rc2 {[%emt 0:00:03]} R2e3 {[%emt 0:00:00]} 45. b4 {[%emt 0:00:04]} axb4 {[%emt 0:00:02]} 46. axb4 {[%emt 0:00:01]} Rf3 {[%emt 0:00:05]} 47. d5 {[%emt 0:00:01]} Bxb2 {[%emt 0:00:01]} 48. Rxb2 {[%emt 0:00:00]} Rxf5 {[%emt 0:00:01]} 49. Rbc2 {[%emt 0:00:08]} Rxd5 {[%emt 0:00:03]} 50. Rc7 {[%emt 0:00:00]} Rde5 {[%emt 0:00:05]} 51. Kf1 {[%emt 0:00:02]} Re1+ {[%emt 0:00:01]} 52. Kf2 {[%emt 0:00:00]} R1e2+ {[%emt 0:00:01]} 53. Kf3 {[%emt 0:00:01]} Rxg2 {[%emt 0:00:00]} 54. Kxg2 {[%emt 0:00:00]} Re4 {[%emt 0:00:01]} 0-1

[Event "2nd Father Cup Blitz 2023"]
[Site "Rasht"]
[Date "2023.12.07"]
[Round "10.3"]
[White "Mousavi, Seyed Khalil"]
[Black "Tahbaz, Arash"]
[Result "1-0"]
[ECO "D37"]
[WhiteElo "2501"]
[BlackElo "2423"]
[Annotator "RC"]
[PlyCount "81"]
[EventDate "2023.12.07"]
[EventType "swiss"]
[EventCountry "IRI"]
[SourceTitle "playchess.com"]
[Source "ChessBase"]
[SourceQuality "1"]
[TimeControl "300+2"]

1. d4 {[%emt 0:00:02]} d5 {[%emt 0:00:11]} 2. Nf3 {[%emt 0:00:03]} Nf6 {[%emt 0:00:01]} 3. c4 e6 {[%emt 0:04:56]} 4. Nc3 {[%emt 0:00:05]} Be7 {[%emt 0:00:00]} 5. Bf4 {[%emt 0:00:04]} O-O {[%emt 0:00:00]} 6. e3 {[%emt 0:00:02]} c5 {[%emt 0:00:00]} 7. dxc5 {[%emt 0:00:14]} Bxc5 {[%emt 0:00:00]} 8. a3 {[%emt 0:00:01]} Nc6 {[%emt 0:00:00]} 9. b4 {[%emt 0:00:12]} Be7 {[%emt 0:00:00]} 10. cxd5 {[%emt 0:00:08]} Nxd5 {[%emt 0:00:00]} 11. Nxd5 {[%emt 0:00:01]} Qxd5 {[%emt 0:00:00]} 12. Qxd5 {[%emt 0:00:06]} exd5 {[%emt 0:00:00]} 13. Rd1 {[%emt 0:00:10]} Be6 {[%emt 0:00:00]} 14. Be2 {[%emt 0:00:02]} Bf6 {[%emt 0:00:00]} 15. O-O {[%emt 0:00:17]} Bb2 {[%emt 0:00:00]} 16. a4 {[%emt 0:00:23]} Nxb4 {[%emt 0:00:00]} 17. Bd6 {[%emt 0:00:16]} a5 {[%emt 0:00:00]} 18. Bxf8 {[%emt 0:00:02]} Kxf8 {[%emt 0:00:00]} 19. Bb5 {[%emt 0:00:01]} Rc8 {[%emt 0:00:00]} 20. Nd4 {[%emt 0:00:04]} Ke7 {[%emt 0:00:00]} 21. Rfe1 {[%emt 0:00:28]} Bc3 {[%emt 0:00:00]} 22. Re2 {[%emt 0:00:03]} Bxd4 {[%emt 0:00:00]} 23. exd4 {[%emt 0:00:10]} Kd6 {[%emt 0:00:00]} 24. h3 {[%emt 0:00:08]} g5 {[%emt 0:00:00]} 25. Re5 {[%emt 0:00:21]} h6 {[%emt 0:00:00]} 26. h4 {[%emt 0:00:11]} f6 {[%emt 0:00:00]} 27. Re3 {[%emt 0:00:06]} gxh4 {[%emt 0:00:00]} 28. Rde1 {[%emt 0:00:11]} Bg4 {[%emt 0:00:00]} 29. Re8 {[%emt 0:00:21]} Rxe8 {[%emt 0:00:00]} 30. Rxe8 {[%emt 0:00:01]} Nc2 {[%emt 0:00:00]} 31. Rd8+ {[%emt 0:00:15]} Kc7 {[%emt 0:00:00]} 32. Rxd5 {[%emt 0:00:53]} b6 {[%emt 0:00:00]} 33. Be8 {[%emt 0:00:01]} Nb4 {[%emt 0:00:40]} 34. Rb5 {[%emt 0:00:00]} Kd8 {[%emt 0:00:01]} 35. Bh5 {[%emt 0:00:04]} Bd7 {[%emt 0:00:12]} 36. Rxb6 {[%emt 0:00:02]} Bxa4 {[%emt 0:00:05]} 37. Rxf6 {[%emt 0:00:01]} Bb3 {[%emt 0:00:03]} 38. Bf7 {[%emt 0:00:12]} Bxf7 {[%emt 0:00:06]} 39. Rxf7 {[%emt 0:00:01]} Kc8 {[%emt 0:00:02]} 40. Rf5 {[%emt 0:00:13]} Nc6 {[%emt 0:00:02]} 41. Rc5 {[%emt 0:00:01]} 1-0

[Event "2nd Father Cup Blitz 2023"]
[Site "Rasht"]
[Date "2023.12.07"]
[Round "10.4"]
[White "Mahdavi, Reza"]
[Black "Golshaani, Taha"]
[Result "1-0"]
[ECO "B12"]
[WhiteElo "2312"]
[BlackElo "1992"]
[Annotator "RC"]
[PlyCount "57"]
[EventDate "2023.12.07"]
[EventType "swiss"]
[EventCountry "IRI"]
[SourceTitle "playchess.com"]
[Source "ChessBase"]
[SourceQuality "1"]
[TimeControl "300+2"]

1. e4 {[%emt 0:00:01]} c6 {[%emt 0:00:00]} 2. d4 {[%emt 0:00:00]} d5 {[%emt 0:00:01]} 3. e5 {[%emt 0:00:01]} Bf5 {[%emt 0:00:01]} 4. Nf3 {[%emt 0:00:01]} e6 {[%emt 0:00:00]} 5. Be2 {[%emt 0:00:00]} Nd7 {[%emt 0:00:01]} 6. O-O {[%emt 0:00:02]} a5 {[%emt 0:00:00]} 7. a4 {[%emt 0:00:05]} f6 {[%emt 0:00:01]} 8. c4 {[%emt 0:00:02]} fxe5 {[%emt 0:00:05]} 9. dxe5 {[%emt 0:00:01]} Bc5 {[%emt 0:00:04]} 10. Nbd2 {[%emt 0:00:03]} Qb6 {[%emt 0:00:52]} 11. Nb3 {[%emt 0:00:13]} Ne7 {[%emt 0:00:01]} 12. Nxc5 {[%emt 0:00:04]} Qxc5 {[%emt 0:00:12]} 13. Be3 {[%emt 0:00:01]} Qb4 {[%emt 0:00:01]} 14. Rc1 {[%emt 0:00:35]} O-O {[%emt 0:04:11]} 15. Rc3 {[%emt 0:00:02]} Rab8 {[%emt 0:00:00]} 16. Ba7 {[%emt 0:00:20]} Rbd8 {[%emt 0:00:00]} 17. Rb3 {[%emt 0:00:35]} Qxa4 {[%emt 0:00:00]} 18. Rxb7 {[%emt 0:00:01]} Qxd1 {[%emt 0:00:00]} 19. Rxd1 {[%emt 0:00:01]} Ng6 {[%emt 0:00:00]} 20. cxd5 {[%emt 0:00:03]} cxd5 {[%emt 0:00:00]} 21. Bd4 {[%emt 0:00:05]} Nb8 {[%emt 0:00:00]} 22. Rc1 {[%emt 0:00:26]} Nf4 {[%emt 0:00:00]} 23. Bb5 {[%emt 0:00:12]} Be4 {[%emt 0:00:00]} 24. Rcc7 {[%emt 0:00:06]} Rc8 {[%emt 0:00:00]} 25. Rxg7+ {[%emt 0:00:40]} Kh8 {[%emt 0:00:00]} 26. Be3 {[%emt 0:00:04]} Nxg2 {[%emt 0:00:00]} 27. Kxg2 {[%emt 0:00:26]} Bxf3+ {[%emt 0:00:05]} 28. Kf1 {[%emt 0:00:09]} d4 {[%emt 0:00:05]} 29. Rxh7+ {[%emt 0:00:02]} 1-0

[Event "2nd Father Cup Blitz 2023"]
[Site "Rasht"]
[Date "2023.12.07"]
[Round "11.1"]
[White "Mahdavi, Reza"]
[Black "Maghsoodloo, Parham"]
[Result "0-1"]
[ECO "B47"]
[WhiteElo "2312"]
[BlackElo "2742"]
[Annotator "TA"]
[PlyCount "62"]
[EventDate "2023.12.07"]
[EventType "swiss"]
[EventCountry "IRI"]
[SourceTitle "playchess.com"]
[Source "ChessBase"]
[SourceQuality "1"]
[TimeControl "300+2"]

{[%evp 13,62,14,14,0,0,6,23,16,21,20,25,25,22,0,8,12,0,0,0,-14,22,0,15,0,7,0,0,-24,29,18,16,16,36,-11,0,-51,-44,-52,-55,-54,-19,-31,-19,-22,0,0,-4,0,-5,-748,-375]} 1. e4 {[%emt 0:00:01]} c5 {[%emt 0:00:02]} 2. Nf3 {[%emt 0:00:01][%cal Bg1f3,Bf3d4,Bd4b5][%mdl 32]} Nc6 {[%emt 0:00:03]} 3. d4 {[%emt 0:00:01]} cxd4 {[%emt 0:00:01]} 4. Nxd4 {[%emt 0:00:01]} e6 {[%emt 0:00:03]} 5. Nc3 {[%emt 0:00:01]} Qc7 {[%emt 0:00:02]} 6. Be3 {[%emt 0:00:01]} Nf6 {[%emt 0:00:02]} 7. Ndb5 {[%emt 0:00:57]} Qb8 $1 {[%emt 0:00:02]} 8. Qd2 {[%emt 0:00:28] B47: Sicilian: Taimanov: 5 Nc3 Qc7 6 f4, 6 g3 and 6 Be2.} a6 {[%emt 0:00:15]} 9. Nd4 {[%emt 0:00:01] [#]} b5 $146 {[%emt 0:01:17]} ({Predecessor:} 9... Bb4 10. f3 d5 11. a3 Bxc3 12. Qxc3 Ne7 13. Nb3 dxe4 14. fxe4 O-O 15. O-O-O b5 {1-0 Borisek,J (2576)-Bove,A (2308) Spilimbergo op 16th 2018 (2)}) 10. Nxc6 {[%emt 0:00:12] White has an edge.} dxc6 {[%emt 0:00:01]} 11. O-O-O {[%emt 0:00:01][%csl Gd1][%cal Rd2d8]} Bb7 {[%emt 0:01:16] [#]} 12. g4 $1 {[%emt 0:00:07][%cal Bg2g4,Bg4g5][%mdl 32] Strongly threatening g5.} Qd8 {[%emt 0:00:25]} 13. Qe2 {[%emt 0:01:05]} Qa5 {[%emt 0:00:03]} 14. g5 {[%emt 0:00:22]} Nd7 {[%emt 0:00:01]} 15. Qf3 {[%emt 0:00:45][%cal Od1d7] Black must now prevent Rxd7!} Rd8 {[%emt 0:00:15]} 16. Kb1 {[%emt 0:00:17]} b4 {[%emt 0:00:16]} 17. Ne2 {[%emt 0:00:01]} c5 {[%emt 0:00:03]} (17... Ne5 $5 {[%cal Rd8d1]} 18. Rxd8+ Qxd8 $14) 18. Nc1 {[%emt 0:00:03]} Qc7 {[%emt 0:00:15]} 19. Bf4 {[%emt 0:00:24]} Qc6 {[%emt 0:00:01]} (19... e5 $5 {[%cal Re5f4]} 20. Be3 Be7 $11) 20. Bc4 {[%emt 0:00:13]} (20. Be2 $5 {[%cal Rc1b3]}) 20... Be7 {[%emt 0:00:08]} (20... Qxe4 $142 21. Qxe4 Bxe4) 21. Rhe1 $11 {[%emt 0:00:05][%cal Oc4d5]} Nb6 {[%emt 0:00:08] Dodges Bd5} 22. Rxd8+ {[%emt 0:00:08]} Bxd8 {[%emt 0:00:01]} 23. Bf1 {[%emt 0:00:10]} (23. b3 $14) 23... c4 {[%emt 0:00:07]} 24. Be5 {[%emt 0:00:05]} (24. Qe3 $11) 24... O-O $1 $15 {[%emt 0:00:02]} 25. h4 {[%emt 0:00:02]} Nd7 {[%emt 0:00:09]} 26. Bg3 {[%emt 0:00:02]} a5 {[%emt 0:00:09][%cal Ba6a5,Ba5a4][%mdl 32]} (26... Nc5 {feels hotter.} 27. Qf4 c3 28. f3 cxb2 29. Nd3 Na4) 27. Rd1 {[%emt 0:00:01]} Be7 {[%emt 0:00:00]} (27... Qxe4 $2 28. Qxe4 Bxe4 29. Rxd7 $18) 28. Bxc4 {[%emt 0:00:07][%mdl 64] [#] Deflection} Qxc4 {[%emt 0:00:10]} (28... Nc5 $5 {[%cal Rc5e4]}) 29. Rxd7 {[%emt 0:00:01]} Bxe4 {[%emt 0:00:00]} (29... Qxe4 $2 30. Qxe4 Bxe4 31. Rxe7 $18) 30. Qb3 {[%emt 0:00:00]} ({Of course not} 30. Qe2 Qxe2 31. Nxe2 Bc5 $15) 30... Qc6 {[%emt 0:00:19] The board is on fire.} 31. Rxe7 $4 {[%emt 0:00:06][%mdl 8192]} (31. Rc7 $11 Qe8 32. Qc4) 31... a4 {[%emt 0:00:01] Weighted Error Value: White=0.24 (precise) /Black=0.09 (flawless)} 0-1

[Event "2nd Father Cup Blitz 2023"]
[Site "Rasht"]
[Date "2023.12.07"]
[Round "11.2"]
[White "Daghli, Arash"]
[Black "Omidi, Arya"]
[Result "1-0"]
[ECO "E01"]
[WhiteElo "2410"]
[BlackElo "2301"]
[Annotator "RC"]
[PlyCount "89"]
[EventDate "2023.12.07"]
[EventType "swiss"]
[EventCountry "IRI"]
[SourceTitle "playchess.com"]
[Source "ChessBase"]
[SourceQuality "1"]
[TimeControl "300+2"]

1. c4 {[%emt 0:00:01]} c6 {[%emt 0:00:01]} 2. Nf3 {[%emt 0:00:07]} d5 {[%emt 0:00:01]} 3. d4 {[%emt 0:00:02]} Nf6 {[%emt 0:00:02]} 4. Qc2 {[%emt 0:00:00]} e6 {[%emt 0:00:13]} 5. g3 {[%emt 0:00:03]} Nbd7 {[%emt 0:00:24]} 6. Bg2 {[%emt 0:00:01]} Ne4 {[%emt 0:00:19]} 7. O-O {[%emt 0:00:04]} f5 {[%emt 0:00:02]} 8. b3 {[%emt 0:00:20]} Bd6 {[%emt 0:00:12]} 9. Ba3 {[%emt 0:00:01]} Bxa3 {[%emt 0:00:06]} 10. Nxa3 {[%emt 0:00:01]} Qe7 {[%emt 0:00:01]} 11. Qb2 {[%emt 0:00:09]} a6 {[%emt 0:00:11]} 12. Nc2 {[%emt 0:00:04]} O-O {[%emt 0:00:03]} 13. Nce1 {[%emt 0:00:04]} b5 {[%emt 0:00:24]} 14. cxd5 {[%emt 0:00:02]} cxd5 {[%emt 0:00:04]} 15. Nd3 {[%emt 0:00:04]} Bb7 {[%emt 0:00:11]} 16. Rfc1 {[%emt 0:00:01]} Rfc8 {[%emt 0:00:04]} 17. a4 {[%emt 0:00:10]} b4 {[%emt 0:00:07]} 18. a5 {[%emt 0:00:01]} Bc6 {[%emt 0:00:06]} 19. Nfe5 {[%emt 0:01:11]} Nxe5 {[%emt 0:00:07]} 20. Nxe5 {[%emt 0:00:03]} Bb5 {[%emt 0:00:06]} 21. Bxe4 {[%emt 0:00:35]} fxe4 {[%emt 0:00:08]} 22. Qd2 {[%emt 0:00:08]} Rc3 {[%emt 0:00:57]} 23. Rxc3 {[%emt 0:01:21]} bxc3 {[%emt 0:00:01]} 24. Qxc3 {[%emt 0:00:01]} Bxe2 {[%emt 0:00:01]} 25. Re1 {[%emt 0:00:09]} Bb5 {[%emt 0:00:08]} 26. f3 {[%emt 0:00:12]} exf3 {[%emt 0:00:03]} 27. Nxf3 {[%emt 0:00:01]} Rf8 {[%emt 0:00:06]} 28. Kg2 {[%emt 0:00:01]} Qf6 {[%emt 0:00:32]} 29. Qe3 {[%emt 0:00:01]} Kh8 {[%emt 0:00:01]} 30. Qf4 {[%emt 0:00:17]} Qd8 {[%emt 0:00:20]} 31. Qe5 {[%emt 0:00:05]} Qxa5 {[%emt 0:00:05]} 32. Qxe6 {[%emt 0:00:13]} Bd3 {[%emt 0:00:28]} 33. Kh3 {[%emt 0:00:16]} Qd8 {[%emt 0:00:12]} 34. Qe7 {[%emt 0:00:13]} Bf5+ {[%emt 0:00:07]} 35. g4 {[%emt 0:00:03]} Qc8 {[%emt 0:00:06]} 36. Ne5 {[%emt 0:00:00]} Be4 {[%emt 0:00:10]} 37. Re3 {[%emt 0:00:04]} h6 {[%emt 0:00:02]} 38. Rxe4 {[%emt 0:00:03]} dxe4 {[%emt 0:00:02]} 39. Qxf8+ {[%emt 0:00:03]} Qxf8 {[%emt 0:00:02]} 40. Ng6+ {[%emt 0:00:01]} Kg8 {[%emt 0:00:00]} 41. Nxf8 {[%emt 0:00:01]} Kxf8 {[%emt 0:00:09]} 42. Kg3 {[%emt 0:00:01]} g5 {[%emt 0:00:00]} 43. Kf2 {[%emt 0:00:01]} Ke7 {[%emt 0:00:00]} 44. Ke3 {[%emt 0:00:00]} Ke6 {[%emt 0:00:02]} 45. Kxe4 {[%emt 0:00:01]} 1-0

[Event "2nd Father Cup Blitz 2023"]
[Site "Rasht"]
[Date "2023.12.07"]
[Round "11.3"]
[White "Khoshkalam, Seyed Mehrab"]
[Black "Mousavi, Seyed Khalil"]
[Result "1-0"]
[ECO "A47"]
[WhiteElo "2266"]
[BlackElo "2501"]
[Annotator "RC"]
[PlyCount "93"]
[EventDate "2023.12.07"]
[EventType "swiss"]
[EventCountry "IRI"]
[SourceTitle "playchess.com"]
[Source "ChessBase"]
[SourceQuality "1"]
[TimeControl "300+2"]

1. Nf3 {[%emt 0:00:02]} Nf6 {[%emt 0:00:13]} 2. d4 {[%emt 0:00:01]} e6 {[%emt 0:00:02]} 3. Bf4 {[%emt 0:00:16]} b6 {[%emt 0:00:03]} 4. e3 {[%emt 0:00:03]} Bb7 {[%emt 0:00:02]} 5. Nbd2 {[%emt 0:00:01]} c5 {[%emt 0:00:05]} 6. Nc4 {[%emt 0:00:06]} cxd4 {[%emt 0:00:17]} 7. Qxd4 {[%emt 0:00:23]} d5 {[%emt 0:00:27]} 8. Nce5 {[%emt 0:00:01]} a6 {[%emt 0:00:31]} 9. Ng5 {[%emt 0:00:18]} Nc6 {[%emt 0:00:21]} 10. Nxc6 {[%emt 0:00:56]} Bxc6 {[%emt 0:00:02]} 11. Be2 {[%emt 0:00:24]} Bc5 {[%emt 0:00:08]} 12. Qd1 {[%emt 0:00:07]} O-O {[%emt 0:00:16]} 13. c3 {[%emt 0:00:02]} Re8 {[%emt 0:00:10]} 14. Nf3 {[%emt 0:00:04]} b5 {[%emt 0:00:19]} 15. Ne5 {[%emt 0:00:07]} Bb7 {[%emt 0:00:03]} 16. Nd3 {[%emt 0:00:01]} Bd6 {[%emt 0:00:41]} 17. Be5 {[%emt 0:00:05]} Bxe5 {[%emt 0:00:08]} 18. Nxe5 {[%emt 0:00:00]} Qc7 {[%emt 0:00:01]} 19. Nf3 {[%emt 0:00:16]} Bc6 {[%emt 0:00:19]} 20. O-O {[%emt 0:00:03]} Rab8 {[%emt 0:00:04]} 21. Qb3 {[%emt 0:00:13]} h6 {[%emt 0:00:15]} 22. Rfd1 {[%emt 0:00:01]} e5 {[%emt 0:00:10]} 23. Rd2 {[%emt 0:00:04]} Ne4 {[%emt 0:00:04]} 24. Rdd1 {[%emt 0:00:03]} a5 {[%emt 0:00:09]} 25. a3 {[%emt 0:00:03]} Nc5 {[%emt 0:00:08]} 26. Qc2 {[%emt 0:00:02]} a4 {[%emt 0:00:02]} 27. Rf1 {[%emt 0:00:10]} Rbd8 {[%emt 0:00:15]} 28. Rad1 {[%emt 0:00:02]} Rd7 {[%emt 0:00:04]} 29. Ne1 {[%emt 0:00:06]} Nb3 {[%emt 0:00:14]} 30. Nd3 {[%emt 0:00:09]} d4 {[%emt 0:00:18]} 31. cxd4 {[%emt 0:00:10]} exd4 {[%emt 0:00:01]} 32. Nb4 {[%emt 0:00:02]} Re6 {[%emt 0:00:09]} 33. Bg4 {[%emt 0:00:04]} Rg6 {[%emt 0:00:02]} 34. f3 {[%emt 0:00:17]} Rdd6 {[%emt 0:00:03]} 35. Bf5 {[%emt 0:00:08]} Rgf6 {[%emt 0:00:03]} 36. e4 {[%emt 0:00:02]} Qe7 {[%emt 0:00:01]} 37. Rfe1 {[%emt 0:00:06]} Qe5 {[%emt 0:00:02]} 38. g3 {[%emt 0:00:04]} g6 {[%emt 0:00:02]} 39. f4 {[%emt 0:00:02]} Qe7 {[%emt 0:00:02]} 40. e5 {[%emt 0:00:02]} Rxf5 {[%emt 0:00:01]} 41. exd6 {[%emt 0:00:03]} Qa7 {[%emt 0:00:03]} 42. Nxc6 {[%emt 0:00:03]} Qb6 {[%emt 0:00:03]} 43. Ne7+ {[%emt 0:00:02]} Kg7 {[%emt 0:00:02]} 44. Nxf5+ {[%emt 0:00:02]} gxf5 {[%emt 0:00:00]} 45. d7 {[%emt 0:00:06]} d3+ {[%emt 0:00:03]} 46. Qf2 {[%emt 0:00:01]} Nd4 {[%emt 0:00:01]} 47. Rxd3 {[%emt 0:00:04]} 1-0